bitfinex/quotes_ETHUSD_20250808
["timestamp","ask_amount","ask_price","bid_price","bid_amount"]
[1754653104593,6.45376793,3918.2,3918.1,0.041]
[1754653104836,7.39133537,3918.2,3918.1,0.041]
[1754653105722,7.85613537,3918.2,3918.1,0.041]
[1754653106022,7.39133537,3918.2,3918.1,0.041]
[1754653106337,7.95841937,3918.2,3918.1,0.041]
[1754653106889,7.49361937,3918.2,3918.1,0.041]
[1754653107088,8.38951937,3918.2,3918.1,0.041]
[1754653107931,7.95841937,3918.2,3918.1,0.041]
[1754653108644,8.38951937,3918.2,3918.1,0.041]
[1754653109652,4.51351937,3918.2,3918.1,0.041]
[1754653109847,7.49361937,3918.2,3918.1,0.041]
[1754653110053,7.62161937,3918.2,3918.1,0.041]
[1754653111653,0.230284,3918.2,3918.1,0.041]
[1754653111835,4.110284,3918.2,3918.1,0.4976]
[1754653112442,4.110284,3918.2,3918.1,0.9326]
[1754653113088,4.110284,3918.2,3918.1,0.4976]
[1754653113512,4.110284,3918.2,3918.1,0.041]
[1754653113814,4.110284,3918.2,3918.1,0.4976]
[1754653114575,0.230284,3918.2,3918.1,0.9326]
[1754653114849,0.1272,3918.6,3918.3,2.55208333]
[1754653115052,3.88,3918.5,3918.4,0.8916]
[1754653115228,3.88,3918.5,3918.4,3.44366206]
[1754653116064,3.88,3918.5,3918.4,0.8916]
[1754653116249,3.88,3918.5,3918.4,3.44366206]
[1754653116466,0.1272,3918.6,3918.4,0.8916]
[1754653116645,0.1272,3918.6,3918.5,3.44359693]
[1754653117075,3.881,3918.7,3918.6,2.55193181]
[1754653117261,3.881,3918.7,3918.6,3.44353181]
[1754653119174,3.882,3918.9,3918.6,3.44353181]
[1754653119380,3.882,3918.9,3918.6,2.55193181]
[1754653119675,3.882,3918.9,3918.7,3.44344354]
[1754653119857,3.882,3918.9,3918.8,0.8916]
[1754653121029,3.882,3918.9,3918.6,0.4566]
[1754653121367,3.882,3918.9,3918.6,0.8916]
[1754653121568,3.882,3918.9,3918.7,0.4566]
[1754653121730,3.882,3918.9,3918.6,0.435]
[1754653122072,3.882,3918.9,3918.6,2.98693177]
[1754653122365,3.882,3918.9,3918.7,0.4566]
[1754653122546,3.882,3918.9,3918.7,3.00846558]
[1754653122746,3.882,3918.9,3918.7,0.4566]
[1754653123276,3.882,3918.9,3918.7,3.0084646]
[1754653123480,3.882,3918.9,3918.8,3.44340157]
[1754653124036,3.882,3918.9,3918.8,0.8916]
[1754653124249,3.882,3918.9,3918.5,0.1272]
[1754653124479,0.1272,3918.6,3918.3,0.435]
[1754653124741,4.0062,3918.6,3918.5,2.98699693]
[1754653124964,0.1292,3919.1,3918.8,2.55175981]
[1754653125274,0.002,3919.1,3918.6,0.8916]
[1754653125474,0.002,3919.1,3919.0,2.55167134]
[1754653125658,0.002,3919.1,3919.0,2.67887134]
[1754653125832,0.002,3919.1,3919.0,3.44327134]
[1754653126038,0.002,3919.1,3919.0,4.55857863]
[1754653132951,0.002,3919.1,3919.0,18.0423604]
[1754653133150,0.002,3919.1,3919.0,21.0423604]
[1754653135087,0.002,3919.1,3919.0,11.99257863]
[1754653140203,1e-08,3919.5,3919.4,6.10141093]
[1754653140370,0.002,3919.9,3919.4,6.10141093]
[1754653140371,0.002,3919.9,3919.8,5.55115056]
[1754653140571,0.002,3919.9,3919.8,18.48593233]
[1754653140753,1e-08,3919.9,3919.8,19.95633233]
[1754653141094,1e-08,3919.9,3919.8,22.51162242]
[1754653141454,1e-08,3919.9,3919.8,22.63882242]
[1754653143914,1e-08,3919.9,3919.8,18.75382242]
[1754653144197,1e-08,3919.9,3919.8,13.59104065]
[1754653145962,1e-08,3920.3,3920.2,3.10089026]
[1754653146165,1e-08,3920.3,3920.2,19.87008252]
[1754653146498,1e-08,3920.3,3920.2,20.91768252]
[1754653147581,1e-08,3920.3,3920.2,17.03068252]
[1754653147796,1e-08,3920.3,3920.2,20.46068252]
[1754653148773,1e-08,3920.3,3920.2,20.91768252]
[1754653153658,1e-08,3920.3,3920.2,10.94450075]
[1754653154163,1e-08,3920.3,3920.2,7.06050075]
[1754653154502,1e-08,3920.3,3920.2,10.94550075]
[1754653155665,1e-08,3920.3,3920.2,7.06050075]
[1754653155871,0.46480001,3920.3,3920.2,10.94450075]
[1754653156070,1e-08,3920.3,3920.2,10.94450075]
[1754653157906,1e-08,3920.3,3920.2,10.39450075]
[1754653158146,1e-08,3920.3,3920.2,6.51050075]
[1754653158421,1e-08,3920.3,3920.2,5.67809026]
[1754653158565,0.46480001,3920.3,3920.2,2.67809026]
[1754653158763,0.93360001,3920.3,3920.2,2.67809026]
[1754653159000,0.93360001,3920.3,3920.2,6.56109026]
[1754653159715,0.93360001,3920.3,3920.0,2.55097796]
[1754653159925,0.9336,3920.2,3920.1,0.1272]
[1754653160693,0.9336,3920.2,3919.9,3.884]
[1754653160908,1e-08,3920.3,3919.9,4.0112]
[1754653161113,0.9336,3920.1,3919.9,4.0112]
[1754653161420,1e-08,3920.3,3919.8,2.55114125]
[1754653161421,0.9336,3920.0,3919.8,2.55114125]
[1754653161726,0.9336,3919.9,3919.8,0.1272]
[1754653162140,1e-08,3920.3,3919.8,0.1272]
[1754653162290,1e-08,3920.3,3918.6,0.001]
[1754653162291,0.9336,3919.9,3919.6,2.55126322]
[1754653162485,0.9336,3919.9,3919.5,0.1272]
[1754653162486,0.4688,3919.8,3919.5,0.1272]
[1754653162702,0.4688,3919.7,3919.5,2.67853498]
[1754653162991,0.9336,3919.7,3919.6,2.55128074]
[1754653163533,0.4648,3919.7,3919.6,2.55128074]
[1754653163927,0.4648,3919.7,3919.5,0.1272]
[1754653163928,0.4648,3919.7,3919.5,2.67852213]
[1754653164227,0.4648,3919.7,3919.5,0.1272]
[1754653164593,0.9336,3919.7,3919.5,0.1272]
[1754653164930,0.1272,3920.1,3919.5,0.1272]
[1754653165132,0.9284,3919.6,3919.3,6.43446734]
[1754653165429,0.4596,3919.5,3919.4,2.55141093]
[1754653165787,0.4596,3919.5,3919.4,0.1272]
[1754653166028,0.4596,3919.5,3919.4,2.67861093]
[1754653166240,0.4596,3919.5,3919.4,0.1272]
[1754653166427,0.4596,3919.5,3919.3,4.0102]
[1754653167928,0.4596,3919.5,3919.1,2.55158942]
[1754653168093,0.9284,3919.4,3919.2,0.1272]
[1754653168293,0.9284,3919.4,3919.1,6.56078942]
[1754653168931,0.4596,3919.4,3919.1,6.56078942]
[1754653169414,0.4596,3919.4,3919.1,4.0092]
[1754653169616,0.4596,3919.4,3919.3,2.55147602]
[1754653169806,0.4688,3919.6,3919.4,2.55141034]
[1754653170006,0.9284,3919.6,3919.4,2.55141034]
[1754653170633,0.4596,3919.6,3919.3,2.55145974]
[1754653171220,0.4596,3919.6,3919.4,2.55140443]
[1754653171937,0.4596,3919.6,3919.1,4.4895]
[1754653172137,0.1272,3919.7,3919.1,4.0092]
[1754653172327,0.9284,3919.5,3919.1,0.1272]
[1754653172531,0.4596,3919.4,3919.1,0.1272]
[1754653172901,9.04978177,3919.9,3918.6,4.291]
[1754653173234,9.04978177,3919.9,3918.7,2.67900293]
[1754653173235,1.0556,3919.3,3918.7,2.67900293]
[1754653173437,1.0556,3919.3,3918.7,0.1272]
[1754653173842,1.0556,3919.3,3918.9,2.55168484]
[1754653174044,0.5868,3919.3,3918.9,2.55168484]
[1754653174816,0.1272,3919.3,3918.9,2.55168484]
[1754653176546,0.1272,3919.3,3918.9,3.03198484]
[1754653177950,0.1272,3919.3,3918.9,0.4803]
[1754653178648,0.1272,3919.3,3918.9,3.03202151]
[1754653179855,0.1272,3919.3,3918.9,0.4803]
[1754653180006,0.1272,3919.3,3918.7,3.11874257]
[1754653180206,0.5868,3919.3,3918.8,2.55179999]
[1754653180407,0.5868,3919.3,3918.8,3.03209929]
[1754653180854,0.5868,3919.3,3918.9,2.55173533]
[1754653181025,0.1272,3919.3,3918.9,3.03203533]
[1754653181345,0.1272,3919.3,3918.9,0.4803]
[1754653181550,0.002,3920.7,3919.3,0.55]
[1754653181749,0.4616,3920.7,3919.9,2.55102744]
[1754653182042,3.4616,3920.7,3919.9,2.55102744]
[1754653182207,2.55069117,3920.6,3919.6,3.893]
[1754653182413,0.4596,3920.4,3919.6,4.3733]
[1754653182734,0.4596,3920.2,3919.8,2.55112609]
[1754653183248,0.4596,3920.2,3919.9,2.55107749]
[1754653183548,0.4596,3920.2,3919.8,2.55114286]
[1754653183838,0.80751236,3920.2,3919.8,2.55114286]
[1754653184338,0.80751236,3920.2,3919.7,2.55117977]
[1754653184543,0.4596,3920.1,3919.6,2.55125636]
[1754653184751,0.4596,3920.1,3919.2,3.893]
[1754653184914,2.35030941,3920.1,3919.6,2.55123432]
[1754653185114,0.9284,3920.0,3919.6,2.55123432]
[1754653185347,1e-08,3920.3,3919.7,4.3327]
[1754653185516,1e-08,3920.3,3920.2,3.10089026]
[1754653185826,1e-08,3920.3,3920.2,7.00689026]
[1754653186144,1e-08,3920.3,3920.2,10.92689026]
[1754653188346,0.04,3921.9,3921.8,2.54984955]
[1754653188528,0.04,3921.9,3921.8,2.8048345]
[1754653188728,0.04,3921.9,3921.8,2.54984955]
[1754653189648,0.04,3921.9,3921.6,2.54995398]
[1754653189952,16.44808087,3921.8,3920.8,2.55046995]
[1754653190138,0.9284,3921.7,3920.6,0.4803]
[1754653190338,0.9284,3921.6,3920.1,3.922]
[1754653190543,11.37055751,3921.5,3920.0,0.4397]
[1754653190745,2.55028631,3921.2,3920.4,2.5507076]
[1754653190921,2.55031788,3921.1,3920.4,2.5507076]
[1754653191253,2.54974227,3922.0,3921.3,2.5501599]
[1754653191440,2.5495339,3922.3,3920.8,4.483]
[1754653191615,0.1272,3922.0,3921.6,2.54996858]
[1754653192018,0.1272,3922.0,3921.6,3.03026858]
[1754653192252,0.1272,3922.0,3921.2,0.4803]
[1754653192450,0.1272,3921.8,3921.5,2.55003691]
[1754653192658,0.1272,3921.8,3921.5,2.5500293]
[1754653193161,0.58318,3921.8,3921.5,2.5500293]
[1754653193359,0.58318,3921.8,3921.5,0.4397]
[1754653193559,0.58318,3921.8,3921.7,2.54991457]
[1754653193955,3.931,3922.4,3921.8,2.54984955]
[1754653194158,0.1272,3922.2,3921.8,3.48154955]
[1754653194543,0.1272,3922.2,3921.8,0.9317]
[1754653194757,0.1272,3922.2,3921.8,3.04584955]
[1754653195338,0.1272,3922.2,3921.8,3.48154955]
[1754653196549,0.1272,3922.2,3921.8,3.04584955]
[1754653199375,0.1272,3922.2,3921.7,2.54990115]
[1754653199543,0.1672,3921.9,3921.5,2.54999182]
[1754653200043,0.1672,3921.9,3921.6,2.54997879]
[1754653200238,0.1672,3921.9,3921.5,3.04603518]
[1754653200562,0.1672,3921.9,3921.4,0.1272]
[1754653200862,0.1672,3921.9,3921.5,2.54999043]
[1754653201562,0.1672,3921.9,3921.4,0.1272]
[1754653201775,0.4648,3921.8,3921.4,0.1272]
[1754653201954,3.927,3921.7,3921.4,0.1272]
[1754653202132,4.3854,3921.7,3921.4,0.1272]
[1754653202332,3.927,3921.7,3921.3,2.55015848]
[1754653202535,4.0542,3921.7,3921.3,2.55015848]
[1754653203070,0.1272,3921.7,3921.5,2.55003451]
[1754653203361,0.1272,3921.7,3921.6,0.9317]
[1754653203735,0.1272,3921.7,3921.6,0.496]
[1754653204732,0.1272,3921.7,3921.6,3.4816796]
[1754653204934,4.0542,3921.8,3921.6,3.4816796]
[1754653205352,4.0542,3921.8,3921.7,0.496]
[1754653207169,3.927,3921.8,3921.7,3.48161457]
[1754653208358,4.0912,3921.9,3921.8,2.54984955]
[1754653208564,0.04,3921.9,3921.8,3.92487717]
[1754653211268,0.04,3921.9,3921.8,6.92487717]
[1754653212154,0.04,3921.9,3921.8,7.47487717]
[1754653212358,0.04,3921.9,3921.8,7.60207717]
[1754653212559,0.04,3921.9,3921.8,4.05207717]
[1754653212760,0.04,3921.9,3921.8,0.6232]
[1754653212964,0.04,3921.9,3921.8,3.17304955]
[1754653213568,0.04,3921.9,3921.8,3.60874955]
[1754653214164,0.04,3921.9,3921.8,1.0589]
[1754653214366,0.04,3921.9,3921.8,3.60874955]
[1754653214551,0.04,3921.9,3921.8,1.0589]
[1754653214746,0.04,3921.9,3921.8,0.1272]
[1754653214949,0.04,3921.9,3921.4,0.496]
[1754653214950,2.54984955,3921.8,3921.4,0.1272]
[1754653215285,2.55003168,3921.6,3921.1,0.1272]
[1754653215475,2.55003168,3921.6,3921.0,0.1272]
[1754653215778,1.0504,3921.7,3921.0,0.1272]
[1754653215779,1.0504,3921.7,3921.1,2.55025922]
[1754653215949,1.0504,3921.7,3921.0,0.1272]
[1754653216148,0.04,3921.9,3921.0,0.1272]
[1754653216149,0.04,3921.9,3921.1,7.95300476]
[1754653216494,0.04,3921.9,3921.8,17.35704363]
[1754653216786,0.335,3923.6,3922.0,6.09971953]
[1754653217148,1e-08,3922.1,3922.0,7.03141953]
[1754653217659,1e-08,3922.1,3922.0,10.97041953]
[1754653218059,2.54709941,3926.1,3922.7,0.55]
[1754653218255,0.4584,3925.1,3923.8,2.54850356]
[1754653218469,0.5205756,3924.8,3923.4,3.0]
[1754653218667,0.9789756,3924.8,3923.5,1.4817]
[1754653218875,4.31268156,3924.7,3923.8,2.54850397]
[1754653219175,4.80768156,3924.7,3923.8,0.496]
[1754653219380,0.85168156,3924.7,3924.1,2.54831279]
[1754653219687,4.9084,3924.6,3923.7,2.98427847]
[1754653219849,4.9084,3924.6,3923.9,2.54847465]
[1754653220045,1.50548376,3924.5,3922.7,0.496]
[1754653220375,3.0,3924.3,3922.3,0.496]
[1754653220566,2.54868752,3923.6,3922.7,2.54920686]
[1754653220745,3.958,3923.5,3922.7,2.54920686]
[1754653220952,3.0438097,3923.4,3922.1,0.04]
[1754653221153,0.74602097,3923.3,3922.3,2.54947683]
[1754653221347,2.54904693,3923.1,3922.3,2.54947683]
[1754653221553,0.495,3923.0,3922.1,2.58961157]
[1754653221853,0.74602097,3923.3,3922.2,2.54957469]
[1754653222078,0.495,3923.0,3922.3,2.5495205]
[1754653222668,0.495,3923.0,3922.2,0.496]
[1754653222867,4.452,3923.0,3922.4,2.54939602]
[1754653223064,4.94304,3923.0,3922.4,2.54939602]
[1754653223384,3.957,3923.0,3922.4,2.54939602]
[1754653223589,3.957,3923.0,3922.3,2.54951997]
[1754653223791,3.957,3923.0,3922.4,0.496]
[1754653224084,3.957,3923.0,3922.1,3.02535328]
[1754653224085,4.4462,3923.0,3922.1,3.02535328]
[1754653224290,2.54915297,3922.9,3922.1,3.02535328]
[1754653224466,2.54915297,3922.9,3922.1,3.62981258]
[1754653224662,0.4892,3922.8,3922.1,0.6444593]
[1754653224892,0.4892,3922.8,3922.1,0.04]
[1754653225191,0.4892,3922.8,3922.1,2.58964462]
[1754653226170,6.50608232,3923.0,3922.2,2.54957632]
[1754653226369,2.54914051,3922.9,3922.2,2.54957632]
[1754653226572,2.67634051,3922.9,3922.3,0.1272]
[1754653226767,0.71225405,3922.8,3922.3,0.1272]
[1754653226984,0.1272,3922.9,3922.3,0.5966]
[1754653227296,2.67633762,3922.9,3922.3,0.5966]
[1754653227463,2.54926925,3922.7,3922.3,0.1272]
[1754653227659,0.6164,3922.9,3922.3,0.1272]
[1754653227863,0.6164,3922.9,3922.1,0.04]
[1754653227864,2.54958951,3922.2,3922.1,0.04]
[1754653228066,7.42858951,3922.2,3922.1,0.04]
[1754653228260,8.43911618,3922.2,3922.1,0.04]
[1754653228462,8.56631618,3922.2,3922.1,0.04]
[1754653230000,7.63831618,3922.2,3922.1,0.04]
[1754653230210,5.08872667,3922.2,3922.1,0.04]
[1754653230704,7.63831618,3922.2,3922.1,0.04]
[1754653231298,5.08872667,3922.2,3922.1,0.04]
[1754653231897,4.0772,3922.2,3922.1,0.04]
[1754653232099,0.1272,3922.2,3922.1,0.04]
[1754653232772,4.0762,3922.2,3922.1,0.04]
[1754653233398,6.62578951,3922.2,3922.1,0.04]
[1754653233765,7.11498951,3922.2,3922.1,0.04]
[1754653233999,8.520236,3922.2,3922.1,0.04]
[1754653235202,8.081436,3922.2,3922.1,0.04]
[1754653235703,8.520236,3922.2,3922.1,0.04]
[1754653237373,8.081436,3922.2,3922.1,0.04]
[1754653237790,7.592236,3922.2,3922.1,0.04]
[1754653238407,7.588236,3922.2,3922.1,0.04]
[1754653238605,3.643236,3922.2,3922.1,0.04]
[1754653238795,7.588236,3922.2,3922.1,0.04]
[1754653242007,1.09364649,3922.2,3922.1,0.04]
[1754653242305,4.0702,3922.2,3922.1,0.5094]
[1754653242688,6.61978951,3922.2,3922.1,0.5094]
[1754653242882,6.61978951,3922.2,3922.1,0.04]
[1754653243098,4.0702,3922.2,3922.1,0.04]
[1754653244010,6.61978951,3922.2,3922.1,0.04]
[1754653244311,7.53671971,3922.2,3922.1,0.04]
[1754653245374,8.46471971,3922.2,3922.1,0.04]
[1754653246918,8.02591971,3922.2,3922.1,0.04]
[1754653248917,8.46471971,3922.2,3922.1,0.041]
[1754653249782,8.02591971,3922.2,3922.1,0.041]
[1754653250111,11.46471971,3922.2,3922.1,0.041]
[1754653250624,5.54978454,3921.9,3921.8,0.001]
[1754653250820,11.44420567,3921.9,3921.8,0.001]
[1754653251026,12.49940567,3921.9,3921.8,0.001]
[1754653252482,12.60160967,3921.9,3921.8,0.001]
[1754653253713,12.60160967,3921.9,3921.8,1e-08]
[1754653257308,42.60160967,3921.9,3921.8,1e-08]
[1754653257512,43.15160967,3921.9,3921.8,1e-08]
[1754653262446,47.15160967,3921.9,3921.8,1e-08]
[1754653262737,56.15872965,3921.9,3921.8,1e-08]
[1754653266140,52.22072965,3921.9,3921.8,1e-08]
[1754653266315,55.70992965,3921.9,3921.8,1e-08]
[1754653268520,51.78192965,3921.9,3921.8,1e-08]
[1754653268839,55.21872965,3921.9,3921.8,1e-08]
[1754653270142,51.21872965,3921.9,3921.8,1e-08]
[1754653273049,55.21872965,3921.9,3921.8,1e-08]
[1754653274924,55.21372965,3921.9,3921.8,1e-08]
[1754653277249,51.21372965,3921.9,3921.8,1e-08]
[1754653277720,2.55004462,3921.5,3921.4,0.001]
[1754653277927,22.37657883,3921.5,3921.4,0.4499]
[1754653278149,22.35100323,3921.5,3921.4,0.4499]
[1754653278317,22.80090323,3921.5,3921.4,0.4499]
[1754653278838,2.55023972,3921.2,3921.1,0.04]
[1754653279144,9.49381532,3921.2,3921.1,0.04]
[1754653279347,10.12194788,3921.2,3921.1,0.04]
[1754653280049,10.22317388,3921.2,3921.1,0.529]
[1754653280475,2.77966572,3921.2,3921.1,0.529]
[1754653280750,3.919,3921.2,3921.1,0.529]
[1754653280914,3.919,3921.2,3921.1,0.9779]
[1754653281515,6.46923972,3921.2,3921.1,0.9779]
[1754653281948,3.919,3921.2,3921.1,0.9779]
[1754653284958,8.67905679,3921.5,3921.1,0.9779]
[1754653285263,0.1272,3921.2,3921.1,0.04]
[1754653285461,4.0462,3921.2,3921.1,0.04]
[1754653285780,4.0462,3921.2,3921.1,0.9526]
[1754653288158,0.1272,3921.2,3921.1,0.9526]
[1754653288576,4.0442,3921.2,3921.1,0.9526]
[1754653290034,8.67904472,3921.5,3921.1,0.9526]
[1754653290035,6.129,3921.5,3921.1,3.50285488]
[1754653290235,3.917,3921.4,3921.2,0.9126]
[1754653290741,3.917,3921.4,3921.3,0.9126]
[1754653292362,2.54978244,3922.0,3921.3,0.9126]
[1754653292363,0.766448,3922.6,3921.3,9.91971998]
[1754653292562,0.1272,3922.2,3921.5,2.55003042]
[1754653292742,3.916,3922.1,3921.8,2.54984857]
[1754653293170,3.916,3922.1,3921.9,0.9126]
[1754653293666,3.916,3922.1,3922.0,0.9126]
[1754653294653,0.1272,3922.4,3922.1,2.54963986]
[1754653294960,3.915,3922.3,3922.1,2.54963986]
[1754653295184,3.915,3922.3,3922.2,0.9126]
[1754653298379,3.915,3922.3,3921.9,0.1272]
[1754653298582,3.915,3922.3,3922.0,0.9126]
[1754653298777,3.915,3922.3,3921.9,0.1272]
[1754653298980,3.915,3922.3,3922.1,0.9126]
[1754653299278,3.915,3922.3,3921.9,0.1272]
[1754653299459,3.915,3922.3,3922.2,0.9126]
[1754653302447,3.915,3922.3,3921.9,4.1272]
[1754653302448,4.3692,3922.3,3921.9,4.0]
[1754653302644,6.90814917,3922.3,3921.9,4.0]
[1754653302849,3.00381801,3922.2,3921.9,4.0]
[1754653303044,3.909,3922.1,3921.9,4.0]
[1754653305474,6.91287521,3922.1,3921.9,4.0]
[1754653305673,4.3632,3922.1,3921.9,4.0]
[1754653305862,3.909,3922.1,3921.9,4.0]
[1754653306066,6.45868656,3922.1,3921.9,4.0]
[1754653306273,4.3632,3922.1,3921.9,4.0]
[1754653306657,6.45870624,3922.1,3921.9,4.0]
[1754653306990,2.67680615,3922.2,3922.0,0.9126]
[1754653307164,3.906,3922.1,3921.9,4.0]
[1754653307892,3.906,3922.1,3921.9,4.4601]
[1754653308491,3.906,3922.1,3921.9,4.0]
[1754653309185,6.45566059,3922.1,3921.9,4.0]
[1754653309362,2.67691953,3922.0,3921.9,4.0]
[1754653309553,3.57471953,3922.0,3921.9,4.0]
[1754653309753,3.12051953,3922.0,3921.9,4.0]
[1754653310082,3.57471953,3922.0,3921.9,4.0]
[1754653313189,4.34116653,3922.0,3921.9,4.0]
[1754653313369,5.51983124,3922.0,3921.9,4.0]
[1754653317290,5.07623124,3922.0,3921.9,4.0]
[1754653317495,8.97723124,3922.0,3921.9,4.0]
[1754653318306,4.62203124,3922.0,3921.9,4.0]
[1754653318502,3.901,3922.0,3921.9,4.9438]
[1754653318683,0.1272,3922.1,3921.9,4.9438]
[1754653318887,0.1272,3922.1,3921.9,4.0]
[1754653318888,3.901,3922.0,3921.9,4.0]
[1754653319598,3.901,3922.0,3921.9,4.9438]
[1754653320605,0.1272,3922.1,3921.9,4.9438]
[1754653320904,3.901,3922.0,3921.9,4.0]
[1754653321703,3.901,3922.0,3921.9,4.9438]
[1754653322204,3.901,3922.0,3921.9,4.4496]
[1754653322572,3.901,3922.0,3921.9,4.9438]
[1754653322882,3.901,3922.0,3921.9,4.0]
[1754653323811,0.1272,3922.1,3921.9,4.0]
[1754653324012,3.899,3922.0,3921.9,4.4942]
[1754653324603,3.899,3922.0,3921.9,4.0]
[1754653327622,3.899,3922.0,3921.9,4.9438]
[1754653329913,3.899,3922.0,3921.9,4.620809]
[1754653331114,3.899,3922.0,3921.9,3.677009]
[1754653332708,3.899,3922.0,3921.9,4.620809]
[1754653334114,3.894,3922.0,3921.9,3.677009]
[1754653334292,4.3593,3922.0,3921.9,3.677009]
[1754653334998,3.894,3922.0,3921.9,3.677009]
[1754653336784,7.36451953,3922.0,3921.9,3.677009]
[1754653337113,8.95671966,3922.0,3921.9,3.677009]
[1754653337683,8.50121966,3922.0,3921.9,3.677009]
[1754653339020,8.95671966,3922.0,3921.9,3.677009]
[1754653350342,4.26911966,3922.0,3921.9,3.677009]
[1754653350502,3.44331753,3922.0,3921.9,3.677009]
[1754653350700,7.33531753,3922.0,3921.9,4.641809]
[1754653351540,4.785598,3922.0,3921.9,4.641809]
[1754653355741,4.785598,3922.0,3921.9,4.642809]
[1754653355918,4.787598,3922.0,3921.9,4.642809]
[1754653357742,7.33731753,3922.0,3921.9,4.642809]
[1754653357925,4.787598,3922.0,3921.9,4.642809]
[1754653358839,7.33731753,3922.0,3921.9,4.145909]
[1754653359041,7.33731753,3922.0,3921.9,3.678009]
[1754653359338,8.8222193,3922.0,3921.9,3.678009]
[1754653361709,9.2849193,3922.0,3921.9,3.678009]
[1754653366052,12.2849193,3922.0,3921.9,3.678009]
[1754653366913,12.2849193,3922.0,3921.9,1.06239195]
[1754653367114,11.3711193,3922.0,3921.9,1e-08]
[1754653367315,12.2849193,3922.0,3921.9,1e-08]
[1754653370749,16.2849193,3922.0,3921.9,1e-08]
[1754653371959,12.2849193,3922.0,3921.9,1e-08]
[1754653372538,21.29203928,3922.0,3921.9,1e-08]
[1754653373469,7.9302193,3922.0,3921.9,1e-08]
[1754653373668,11.3711193,3922.0,3921.9,1e-08]
[1754653373872,11.8222193,3922.0,3921.9,1e-08]
[1754653374039,7.4791193,3922.0,3921.9,1e-08]
[1754653374243,7.33731753,3922.0,3921.9,0.47520001]
[1754653374441,7.33731753,3922.0,3921.9,0.93340001]
[1754653379674,7.33731753,3922.0,3921.9,1e-08]
[1754653379880,20.30643751,3922.0,3921.9,1e-08]
[1754653385055,20.85643751,3922.0,3921.9,1e-08]
[1754653385385,23.19704128,3922.0,3921.9,1e-08]
[1754653386284,2.5499796,3921.6,3921.1,0.041]
[1754653386476,14.5573597,3921.2,3921.1,0.041]
[1754653386787,18.5765597,3921.2,3921.1,0.041]
[1754653386985,21.31768605,3921.2,3921.1,0.041]
[1754653389997,5.55049989,3920.8,3920.6,0.001]
[1754653390171,18.57681987,3920.8,3920.6,0.001]
[1754653390372,19.07391987,3920.8,3920.6,0.001]
[1754653390566,21.41452364,3920.8,3920.6,0.001]
[1754653390768,21.01965964,3920.8,3920.6,0.001]
[1754653391086,21.51675964,3920.8,3920.6,0.001]
[1754653393094,21.01965964,3920.8,3920.6,0.001]
[1754653393297,12.01253966,3920.8,3920.7,0.9344]
[1754653393759,12.01253966,3920.8,3920.7,0.001]
[1754653394395,12.50963966,3920.8,3920.7,0.001]
[1754653394789,12.01253966,3920.8,3920.7,0.001]
[1754653394958,12.50963966,3920.8,3920.7,0.001]
[1754653395291,12.97453966,3920.8,3920.7,0.001]
[1754653396371,12.97453966,3920.8,3920.7,1e-08]
[1754653397562,12.01253966,3920.8,3920.7,1e-08]
[1754653397863,12.50963966,3920.8,3920.7,1e-08]
[1754653398887,12.97453966,3920.8,3920.7,1e-08]
[1754653406503,12.50963966,3920.8,3920.7,1e-08]
[1754653406882,12.94173966,3920.8,3920.7,1e-08]
[1754653408810,12.50963966,3920.8,3920.7,1e-08]
[1754653409700,12.94173966,3920.8,3920.7,1e-08]
[1754653410711,12.50963966,3920.8,3920.7,1e-08]
[1754653413509,12.94173966,3920.8,3920.7,1e-08]
[1754653414317,12.50963966,3920.8,3920.7,1e-08]
[1754653416482,12.94173966,3920.8,3920.7,1e-08]
[1754653417292,12.50963966,3920.8,3920.7,1e-08]
[1754653417688,12.94173966,3920.8,3920.7,1e-08]
[1754653418734,43.49173966,3920.8,3920.7,1e-08]
[1754653418931,6.10056495,3920.7,3920.4,1e-08]
[1754653419095,15.10781504,3920.5,3920.4,1e-08]
[1754653419428,15.23501504,3920.5,3920.4,1e-08]
[1754653419627,15.33727104,3920.5,3920.4,1e-08]
[1754653419786,15.78917104,3920.5,3920.4,1e-08]
[1754653419990,18.12977481,3920.5,3920.4,1e-08]
[1754653422935,18.56187481,3920.5,3920.4,1e-08]
[1754653424220,52.56187481,3920.5,3920.4,1e-08]
[1754653425126,48.56187481,3920.5,3920.4,1e-08]
[1754653426729,6.10076012,3920.4,3920.3,1e-08]
[1754653426930,42.55265447,3920.4,3920.3,1e-08]
[1754653427940,46.55265447,3920.4,3920.3,1e-08]
[1754653428802,42.55265447,3920.4,3920.3,1e-08]
[1754653429141,42.65491547,3920.4,3920.3,1e-08]
[1754653432010,46.65491547,3920.4,3920.3,1e-08]
[1754653432416,46.22281547,3920.4,3920.3,1e-08]
[1754653432618,46.65491547,3920.4,3920.3,1e-08]
[1754653434745,46.22281547,3920.4,3920.3,1e-08]
[1754653435045,15.10801024,3920.2,3920.1,1e-08]
[1754653435239,21.46681401,3920.2,3920.1,1e-08]
[1754653435614,21.94321401,3920.2,3920.1,1e-08]
[1754653436034,21.46681401,3920.2,3920.1,1e-08]
[1754653436235,21.56907801,3920.2,3920.1,1e-08]
[1754653437834,25.56907801,3920.2,3920.1,1e-08]
[1754653439146,31.70007801,3920.2,3920.1,1e-08]
[1754653439333,18.14195803,3920.2,3920.1,0.91730001]
[1754653439538,15.80135426,3920.2,3920.1,0.91730001]
[1754653443254,15.80135426,3920.2,3920.1,1e-08]
[1754653443518,15.80135426,3920.2,3920.1,0.00100001]
[1754653443849,15.80135426,3920.2,3920.1,0.91830001]
[1754653444030,18.35664435,3920.2,3920.1,0.91830001]